bitfinex/quotes_ETHUSD_20250328
["timestamp","ask_amount","ask_price","bid_price","bid_amount"]
[1743199649412,8.32545698,1895.1,1894.9,0.24209499]
[1743199649914,8.32545698,1895.1,1894.8,25.05495]
[1743199650218,6.06,1895.1,1894.8,25.05495]
[1743199650518,6.06,1895.1,1894.9,0.24209499]
[1743199650816,6.06,1895.1,1894.8,25.05495]
[1743199651019,6.06,1895.1,1895.0,0.24209499]
[1743199651232,6.06,1895.1,1894.8,25.05495]
[1743199651433,6.06,1895.1,1895.0,0.24209499]
[1743199651621,6.06,1895.1,1894.8,25.05495]
[1743199651931,6.06,1895.1,1895.0,0.24209499]
[1743199652114,6.06,1895.1,1894.8,25.05495]
[1743199652295,6.06,1895.1,1895.0,0.24209499]
[1743199652500,6.06,1895.1,1894.8,10.55495]
[1743199652700,6.06,1895.1,1895.0,0.24209499]
[1743199653231,6.06,1895.1,1894.8,10.55495]
[1743199653401,6.06,1895.1,1895.0,0.24209499]
[1743199653599,6.06,1895.1,1894.8,10.55495]
[1743199653801,6.06,1895.1,1895.0,0.24209499]
[1743199653995,6.06,1895.1,1894.8,10.55495]
[1743199654199,16.60194698,1895.2,1895.0,0.24209499]
[1743199654428,16.60194698,1895.2,1894.8,10.55495]
[1743199654630,16.60194698,1895.2,1895.1,0.24209499]
[1743199654848,16.60194698,1895.2,1894.8,10.55495]
[1743199655008,16.60194698,1895.2,1895.1,0.24209499]
[1743199655209,16.60194698,1895.2,1894.8,10.55495]
[1743199655405,16.60194698,1895.2,1895.1,0.24209499]
[1743199655610,16.60194698,1895.2,1894.8,10.55495]
[1743199655810,16.60194698,1895.2,1895.1,0.24209499]
[1743199656021,16.60194698,1895.2,1894.8,10.55495]
[1743199656225,16.60194698,1895.2,1895.1,0.24209499]
[1743199656442,16.60194698,1895.2,1894.8,10.55495]
[1743199656608,16.60194698,1895.2,1894.9,0.24209499]
[1743199656809,16.60194698,1895.2,1894.8,10.55495]
[1743199657012,16.60194698,1895.2,1895.0,0.24209499]
[1743199657345,16.60194698,1895.2,1894.8,25.05495]
[1743199657513,16.60194698,1895.2,1895.1,0.24209499]
[1743199657714,16.60194698,1895.2,1894.8,25.05495]
[1743199658238,16.60194698,1895.2,1894.9,0.24209499]
[1743199658536,16.60194698,1895.2,1894.8,25.05495]
[1743199659044,16.60194698,1895.2,1894.9,0.24209499]
[1743199659238,16.60194698,1895.2,1894.8,19.77745]
[1743199659539,16.60194698,1895.2,1895.0,0.24209499]
[1743199659738,16.60194698,1895.2,1894.8,19.77745]
[1743199659941,16.60194698,1895.2,1895.1,0.24209499]
[1743199660408,16.60194698,1895.2,1894.8,19.77745]
[1743199660609,16.60194698,1895.2,1895.1,0.24225374]
[1743199660838,16.60194698,1895.2,1894.8,19.77745]
[1743199661042,21.87869698,1895.2,1895.1,0.24225374]
[1743199661221,21.87869698,1895.2,1894.8,19.77745]
[1743199661421,21.87869698,1895.2,1895.1,0.24225374]
[1743199661646,21.87869698,1895.2,1894.8,19.77745]
[1743199661943,21.87869698,1895.2,1895.1,0.24225374]
[1743199662141,21.87869698,1895.2,1894.8,19.77745]
[1743199662354,21.87869698,1895.2,1895.1,0.24225374]
[1743199662514,21.87869698,1895.2,1894.8,19.77745]
[1743199662713,16.60194698,1895.2,1895.1,0.24225374]
[1743199662939,16.60194698,1895.2,1894.8,19.77745]
[1743199663142,16.60194698,1895.2,1895.1,0.24225374]
[1743199663317,16.60194698,1895.2,1894.8,19.77745]
[1743199663518,16.60194698,1895.2,1895.1,0.24225374]
[1743199663723,16.60194698,1895.2,1894.8,19.77745]
[1743199663923,16.60194698,1895.2,1895.1,0.24225374]
[1743199664430,16.60194698,1895.2,1894.8,19.77744]
[1743199664630,16.60194698,1895.2,1895.1,0.24225374]
[1743199664843,16.60194698,1895.2,1894.8,19.77744]
[1743199665031,16.60194698,1895.2,1895.1,0.24225374]
[1743199665334,16.60194698,1895.2,1894.8,19.77744]
[1743199665545,16.60194698,1895.2,1895.1,0.24225374]
[1743199666051,16.60194698,1895.2,1894.8,19.77744]
[1743199666258,16.60194698,1895.2,1895.1,0.24225374]
[1743199666429,16.60194698,1895.2,1894.8,25.05491]
[1743199666630,16.60194698,1895.2,1895.1,0.24225374]
[1743199666841,16.60194698,1895.2,1894.8,25.05491]
[1743199667040,14.33649,1895.2,1895.1,0.24225374]
[1743199667330,16.60194698,1895.2,1894.8,19.77744]
[1743199667541,16.60194698,1895.2,1895.1,0.24225374]
[1743199667746,16.60194698,1895.2,1894.8,19.77744]
[1743199667953,16.60194698,1895.2,1895.1,0.24225374]
[1743199668155,16.60194698,1895.2,1894.8,19.77744]
[1743199668359,16.60194698,1895.2,1895.1,0.24225374]
[1743199668567,16.60194698,1895.2,1894.8,19.77744]
[1743199668730,16.60194698,1895.2,1895.1,0.24225374]
[1743199669230,16.60194698,1895.2,1894.8,19.77744]
[1743199669432,16.60194698,1895.2,1895.1,0.24225374]
[1743199669632,16.60194698,1895.2,1894.8,25.05491]
[1743199669831,16.60194698,1895.2,1895.1,0.24225374]
[1743199670135,16.60194698,1895.2,1894.8,25.05491]
[1743199670336,16.60194698,1895.2,1895.1,0.24230665]
[1743199670561,16.60194698,1895.2,1894.8,25.05491]
[1743199670736,16.60194698,1895.2,1895.1,0.24230665]
[1743199670931,16.60194698,1895.2,1894.8,19.77744]
[1743199671466,16.60194698,1895.2,1894.9,0.24230665]
[1743199671627,16.60194698,1895.2,1894.8,19.77744]
[1743199671830,9.06,1895.2,1895.0,5.51914665]
[1743199672062,9.06,1895.2,1895.0,5.27684]
[1743199672246,9.06,1895.2,1895.1,0.24235957]
[1743199674380,11.32545698,1895.2,1895.1,0.24235957]
[1743199675182,9.06,1895.2,1895.1,0.24235957]
[1743199675352,11.32545698,1895.2,1895.1,0.24235957]
[1743199676763,9.06,1895.2,1895.1,0.24235957]
[1743199676964,9.06,1895.2,1894.9,6.08284]
[1743199677141,11.32545698,1895.2,1895.1,0.24235957]
[1743199677340,11.32545698,1895.2,1894.9,20.58284]
[1743199677341,6.06,1895.2,1894.9,20.58282]
[1743199677581,14.39596698,1895.3,1895.1,0.24235957]
[1743199677881,2.26545698,1895.2,1894.9,20.58282]
[1743199679481,14.39596698,1895.3,1894.9,20.58276]
[1743199679676,8.32545698,1895.3,1895.0,5.27697]
[1743199680045,13.60170698,1895.3,1895.1,0.24235957]
[1743199680245,16.60170698,1895.3,1895.2,14.5]
[1743199680448,16.60170698,1895.3,1895.2,0.24235957]
[1743199680677,16.60170698,1895.3,1894.9,11.35997]
[1743199680891,16.60170698,1895.3,1895.2,0.24235957]
[1743199681046,16.60170698,1895.3,1895.0,14.5]
[1743199681272,16.60170698,1895.3,1895.2,0.24235957]
[1743199681474,16.60170698,1895.3,1895.0,14.5]
[1743199681711,16.60170698,1895.3,1895.2,0.24235957]
[1743199681869,16.60170698,1895.3,1895.0,14.5]
[1743199682064,6.06,1895.3,1895.2,6.34573957]
[1743199682264,6.06,1895.6,1895.5,5.27565]
[1743199682584,13.60033698,1895.8,1895.5,6.34333519]
[1743199682768,5.26545698,1895.7,1895.5,1.06772519]
[1743199682971,2.26545698,1895.7,1895.5,1.06772519]
[1743199683274,5.26545698,1895.7,1895.5,1.06772519]
[1743199683686,13.60033698,1895.8,1895.5,1.06772519]
[1743199684188,3.0,1895.7,1895.5,1.06772519]
[1743199685013,3.0,1895.7,1895.5,6.34336519]
[1743199685514,3.0,1895.7,1895.5,6.34326519]
[1743199685673,6.06,1895.8,1895.6,5.27537]
[1743199686090,9.06,1895.8,1895.7,0.24082519]
[1743199686289,9.06,1895.8,1895.5,6.10237]
[1743199686912,9.06,1895.8,1895.6,0.24082519]
[1743199690133,3.0,1895.7,1895.6,14.74082519]
[1743199691801,3.0,1895.7,1895.6,0.24082519]
[1743199692727,8.32545698,1895.8,1895.6,0.24082519]
[1743199695533,8.32545698,1895.8,1895.6,5.51617519]
[1743199695706,0.05,1895.9,1895.6,7.35729971]
[1743199695904,2.26545698,1895.8,1895.7,14.5]
[1743199696110,2.26545698,1895.8,1895.7,14.7340556]
[1743199696938,2.26545698,1895.8,1895.7,0.2340556]
[1743199697324,5.31545698,1895.9,1895.6,7.11642452]
[1743199697525,5.31545698,1895.9,1895.7,0.2340556]
[1743199697944,5.31545698,1895.9,1895.6,20.53726]
[1743199698396,5.31545698,1895.9,1895.7,0.2340556]
[1743199698740,5.31545698,1895.9,1895.6,20.53726]
[1743199699204,5.31545698,1895.9,1895.7,0.2340556]
[1743199699536,2.26545698,1895.8,1895.6,20.53726]
[1743199699739,2.31545698,1895.9,1895.6,20.53726]
[1743199704556,2.31545698,1895.9,1895.7,5.27492]
[1743199707689,0.05,1895.9,1895.8,6.04121]
[1743199707982,0.05,1895.9,1895.8,6.09395026]
[1743199708283,0.05,1895.9,1895.8,6.04121]
[1743199708581,0.05,1895.9,1895.8,7.172823]
[1743199709259,0.05,1895.9,1895.8,7.158323]
[1743199709888,3.32120499,1896.1,1896.0,6.02616]
[1743199710180,2.26545698,1896.8,1896.3,5.27342]
[1743199710389,5.26545698,1896.8,1896.5,6.02459]
[1743199710557,2.26545698,1896.8,1896.5,6.02459]
[1743199710757,6.8334,1896.9,1896.6,0.23014421]
[1743199710953,6.06,1896.9,1896.8,5.27203]
[1743199711168,7.473398,1897.0,1896.8,5.27195]
[1743199711364,1.413398,1897.0,1896.9,5.27175]
[1743199711594,3.67885498,1897.0,1896.9,0.23014421]
[1743199711889,8.31033698,1897.0,1896.7,4.946]
[1743199712083,2.26545698,1896.9,1896.7,4.946]
[1743199712285,2.26545698,1897.2,1896.8,0.7519]
[1743199712460,5.26545698,1897.2,1896.9,5.27153]
[1743199713189,3.0,1897.2,1896.8,0.7519]
[1743199713391,8.27067,1897.3,1896.9,5.27161]
[1743199713556,10.53612698,1897.3,1896.9,5.27161]
[1743199713777,10.53612698,1897.3,1897.0,0.527161]
[1743199714862,3.0,1897.1,1896.8,0.7519]
[1743199715057,8.2712,1897.1,1896.8,0.7519]
[1743199715261,5.27148,1897.0,1896.8,0.7519]
[1743199715470,5.27207,1896.8,1896.6,0.7519]
[1743199715662,5.27207,1896.8,1896.6,5.6989]
[1743199716055,9.04007783,1896.7,1896.5,4.949]
[1743199716365,5.27231,1896.7,1896.5,4.949]
[1743199716970,10.54486,1896.7,1896.5,4.949]
[1743199717187,5.27231,1896.7,1896.5,4.949]
[1743199721066,5.27259,1896.6,1896.5,4.949]
[1743199721387,5.27259,1896.6,1896.3,0.7519]
[1743199721594,5.27259,1896.6,1896.4,4.945]
[1743199722887,10.54538,1896.6,1896.4,4.945]
[1743199723063,5.27259,1896.6,1896.4,4.945]
[1743199723262,10.5453,1896.6,1896.4,4.945]
[1743199723566,5.27299,1896.5,1896.3,5.6959]
[1743199724295,5.27299,1896.5,1896.3,4.944]
[1743199725068,5.27299,1896.5,1896.4,0.22348738]
[1743199725401,5.27299,1896.5,1896.3,4.944]
[1743199725701,10.54537,1896.6,1896.4,0.22348738]
[1743199725868,10.54537,1896.6,1896.3,4.944]
[1743199726074,5.27259,1896.6,1896.5,0.22348738]
[1743199729802,5.27289,1896.5,1896.3,4.944]
[1743199729968,5.27289,1896.5,1896.4,14.5]
[1743199734414,5.27232,1896.7,1896.4,17.2271]
[1743199734613,5.27263,1896.6,1896.4,14.5]
[1743199734820,5.27287,1896.5,1896.4,14.5]
[1743199737120,7.53490946,1896.5,1896.4,14.5]
[1743199737315,2.26203946,1896.5,1896.4,14.5]
[1743199737640,7.53466946,1896.6,1896.4,14.5]
[1743199737928,2.26203946,1896.7,1896.4,15.2827]
[1743199738099,7.53435946,1896.7,1896.4,15.2827]
[1743199738292,11.33224,1896.8,1896.4,15.2827]
[1743199738293,6.06,1896.8,1896.4,17.832698]
[1743199738489,13.59417946,1896.8,1896.4,17.832698]
[1743199738685,13.59417946,1896.8,1896.4,23.105618]
[1743199738884,11.33214,1896.8,1896.4,28.378628]
[1743199739122,11.33214,1896.8,1896.4,23.105618]
[1743199739301,11.33214,1896.8,1896.5,2.3105618]
[1743199739798,11.33214,1896.8,1896.4,8.605618]
[1743199739995,11.33214,1896.8,1896.6,0.22396271]
[1743199740225,11.33214,1896.8,1896.5,14.5]
[1743199740422,14.33214,1896.8,1896.7,0.22396271]
[1743199741019,14.33214,1896.8,1896.7,14.5]
[1743199741227,14.33214,1896.8,1896.7,14.72396271]
[1743199742216,18.92528481,1896.8,1896.7,0.22396271]
[1743199742525,5.27269,1896.6,1896.4,4.938]
[1743199742725,5.27269,1896.6,1896.4,19.438]
[1743199744125,10.54553,1896.6,1896.4,19.438]
[1743199744427,5.27287,1896.5,1896.4,19.438]
[1743199744930,5.27273,1896.6,1896.4,19.438]
[1743199745641,5.27273,1896.6,1896.4,4.938]
[1743199746378,5.27273,1896.6,1896.4,19.438]
[1743199747559,5.27273,1896.6,1896.4,14.5]
[1743199751206,10.54552,1896.6,1896.4,14.5]
[1743199754045,5.27273,1896.6,1896.4,14.5]
[1743199754949,5.27273,1896.6,1896.5,0.2041901]
[1743199755460,5.27273,1896.6,1896.3,4.938]
[1743199755762,5.27273,1896.6,1896.5,14.5]
[1743199756260,5.27273,1896.6,1896.5,14.7041901]
[1743199756658,5.27273,1896.6,1896.5,0.2041901]
[1743199756967,5.27273,1896.6,1896.3,4.938]
[1743199757273,10.54559,1896.6,1896.4,14.5]
[1743199757443,10.54559,1896.6,1896.4,14.7041901]
[1743199757657,5.27287,1896.5,1896.4,14.7041901]
[1743199758164,5.27273,1896.6,1896.4,14.7041901]
[1743199759236,5.27233,1896.7,1896.4,19.9772901]
[1743199759447,24.19739481,1896.8,1896.4,23.25541911]
[1743199759653,18.10079481,1896.8,1896.4,17.98231911]
[1743199760362,5.27236,1896.7,1896.4,17.98231911]
[1743199760860,7.53401369,1896.7,1896.4,17.98231911]
[1743199761974,2.26165369,1896.6,1896.4,17.98231911]
[1743199763275,7.53401369,1896.7,1896.4,17.98231911]
[1743199763477,2.26165369,1896.6,1896.4,15.4907901]
[1743199764480,7.53401369,1896.7,1896.4,15.4907901]
[1743199764980,5.27259,1896.6,1896.4,15.4907901]
[1743199765480,7.53452369,1896.5,1896.4,0.2041901]
[1743199765777,11.34457,1896.6,1896.2,5.27358]
[1743199766077,2.26165369,1896.5,1896.2,21.400693]
[1743199766379,2.26165369,1896.5,1896.3,0.20366202]
[1743199766780,8.33344369,1896.6,1896.3,0.20366202]
[1743199766984,13.60621369,1896.6,1896.4,14.5]
[1743199767152,8.33344369,1896.6,1896.4,14.5]
[1743199767650,8.33344369,1896.6,1896.5,0.20366202]
[1743199770684,8.33344369,1896.6,1896.2,5.27358]
[1743199770995,2.26165369,1896.5,1896.3,19.97708202]
[1743199773787,8.33344369,1896.6,1896.3,19.97708202]
[1743199775388,2.26165369,1896.6,1896.4,0.82]
[1743199775596,2.26165369,1896.6,1896.4,6.09314]
[1743199775979,2.26165369,1896.6,1896.5,14.70366202]
[1743199779400,7.53424369,1896.6,1896.5,0.20366202]
[1743199779771,7.53424369,1896.6,1896.3,14.5]
[1743199779988,2.26165369,1896.5,1896.3,14.5]
[1743199781103,5.27259,1896.6,1896.3,15.7445716]
[1743199781302,11.32165369,1896.8,1896.4,6.14573015]
[1743199781492,2.26165369,1896.7,1896.4,6.093]
[1743199782105,2.26165369,1896.7,1896.5,14.5]
[1743199782268,16.59378369,1896.8,1896.5,14.5]
[1743199782466,2.26165369,1896.7,1896.5,14.5]
[1743199782732,7.53406369,1896.7,1896.5,14.5]
[1743199783806,2.26165369,1896.7,1896.5,14.5]
[1743199784913,2.26165369,1896.7,1896.6,0.20313394]
[1743199785414,7.53399369,1896.7,1896.6,0.20313394]
[1743199785615,7.53399369,1896.7,1896.4,0.82]
[1743199785911,2.26165369,1896.6,1896.3,5.27329]
[1743199786077,2.26165369,1896.6,1896.5,0.20313394]
[1743199789039,7.53424369,1896.6,1896.5,0.20313394]
[1743199789524,5.27259,1896.6,1896.3,5.27329]
[1743199789828,5.27259,1896.6,1896.5,14.70329235]
[1743199790030,5.27259,1896.6,1896.5,14.5]
[1743199790196,5.27259,1896.6,1896.5,14.70329235]
[1743199790707,7.53424369,1896.6,1896.5,14.70329235]
[1743199791335,5.27259,1896.6,1896.5,14.70329235]
[1743199791630,7.53424369,1896.6,1896.5,14.70329235]
[1743199792737,7.53424369,1896.6,1896.5,0.20329235]
[1743199793133,7.53424369,1896.6,1896.5,14.5]
[1743199793343,7.53424369,1896.6,1896.5,14.70329235]
[1743199796140,7.53424369,1896.6,1896.5,0.20329235]
[1743199796532,12.80703369,1896.6,1896.3,4.937]
[1743199796843,10.54538,1896.6,1896.5,14.70329235]
[1743199797049,12.80703369,1896.6,1896.5,14.5]
[1743199797256,12.80703369,1896.6,1896.5,14.70329235]
[1743199798958,7.53424369,1896.6,1896.5,14.70329235]
[1743199799660,7.53424369,1896.6,1896.5,0.20329235]
[1743199799959,7.53424369,1896.6,1896.3,4.937]
[1743199800122,2.26165369,1896.5,1896.4,14.5]
[1743199803078,2.26165369,1896.6,1896.4,14.5]
[1743199804196,2.26165369,1896.5,1896.4,14.5]
[1743199805603,7.53425369,1896.6,1896.4,14.5]
[1743199808095,2.26165369,1896.6,1896.4,14.5]
[1743199809221,9.8616,1896.8,1896.4,19.773]
[1743199809524,2.26165369,1896.7,1896.4,23.531854]
[1743199809886,7.53399369,1896.7,1896.4,23.531854]
[1743199810206,2.26165369,1896.6,1896.4,23.531854]
[1743199810715,5.27234,1896.7,1896.4,23.531854]
[1743199810915,7.53399369,1896.7,1896.4,23.531854]
[1743199811619,2.26165369,1896.7,1896.4,23.531854]
[1743199811911,16.59381369,1896.8,1896.5,2.3531854]
[1743199812114,6.06,1896.8,1896.6,5.27247]
[1743199812327,6.06,1896.8,1896.6,10.54495]
[1743199812624,8.32165369,1896.9,1896.6,6.03297]
[1743199813312,2.26165369,1896.8,1896.6,6.03297]
[1743199813634,6.06,1896.9,1896.6,7.163552]
[1743199813923,2.26165369,1896.8,1896.6,6.03297]
[1743199814550,8.32165369,1896.9,1896.6,6.03297]
[1743199814751,2.26165369,1896.8,1896.6,6.03297]
[1743199814935,2.26165369,1896.8,1896.7,0.20313391]
[1743199815112,2.26165369,1896.8,1896.6,6.03297]
[1743199815313,2.26165369,1896.8,1896.7,0.20313391]
[1743199815751,2.26165369,1896.8,1896.6,6.03297]
[1743199815914,2.26165369,1896.8,1896.7,0.20313391]
[1743199816110,2.26165369,1897.2,1897.0,5.27148]
[1743199816313,2.26165369,1897.2,1897.1,0.20313391]
[1743199816547,2.26165369,1897.2,1896.9,5.27151]
[1743199816759,2.26165369,1897.1,1896.8,6.03713]
[1743199817311,2.26165369,1897.0,1896.8,6.03713]
[1743199817513,2.26165369,1897.0,1896.8,7.661672]
[1743199817825,2.26165369,1897.1,1896.8,12.933552]
[1743199818565,2.26165369,1897.1,1896.8,7.661522]
[1743199818850,2.26165369,1897.1,1896.8,12.933442]
[1743199819964,2.26165369,1897.2,1896.9,5.27154]
[1743199820140,2.26165369,1897.2,1897.0,11.834994]
[1743199820370,0.03905733,1897.4,1897.2,5.27076]
[1743199820544,2.26165369,1897.3,1897.1,5.2712]
[1743199820945,2.26165369,1897.2,1897.1,5.2712]
[1743199821251,2.26165369,1897.2,1897.0,1.292254]
[1743199821441,2.26165369,1897.2,1896.8,6.03688]
[1743199821662,2.26165369,1897.1,1896.8,6.03688]
[1743199822159,2.26165369,1897.1,1896.8,11.30874]
[1743199822366,2.26165369,1897.0,1896.8,10.97188]
[1743199823360,2.26165369,1897.1,1896.8,10.97188]
[1743199823569,2.26165369,1897.0,1896.8,10.97188]
[1743199827884,2.26165369,1896.9,1896.8,10.97188]
[1743199828075,2.26165369,1896.9,1896.8,5.7001]
[1743199828378,2.26165369,1897.0,1896.8,5.7001]
[1743199828870,2.26165369,1897.0,1896.8,10.9721]
[1743199829075,2.26165369,1897.0,1896.8,10.207]
[1743199830075,9.82802937,1897.0,1896.9,0.19949113]
[1743199830283,12.08968306,1897.0,1896.9,0.19949113]
[1743199830489,12.08968306,1897.0,1896.6,4.935]
[1743199830490,5.27209,1896.8,1896.6,4.935]
[1743199830655,10.54431,1896.8,1896.6,4.935]
[1743199830861,5.27209,1896.8,1896.6,4.935]
[1743199831396,5.27209,1896.8,1896.4,10.26067428]
[1743199831575,5.27209,1896.8,1896.4,11.07758854]
[1743199831790,2.26165369,1896.7,1896.4,11.02486426]
[1743199834199,2.26165369,1896.7,1896.4,16.29787426]
[1743199834398,8.33674369,1896.8,1896.4,16.29787426]
[1743199835205,2.26165369,1896.6,1896.4,4.935]
[1743199835361,7.53396369,1896.7,1896.4,4.935]
[1743199835565,7.53396369,1896.7,1896.4,10.20813]
[1743199839165,7.53396369,1896.7,1896.4,4.935]
[1743199839664,7.53396369,1896.7,1896.4,10.20805]
[1743199840102,2.26165369,1896.6,1896.4,10.20805]
[1743199841401,2.26165369,1896.6,1896.4,4.935]
[1743199841803,7.53452369,1896.5,1896.3,27.901]
[1743199841974,7.53452369,1896.5,1896.3,32.836]
[1743199842409,7.53452369,1896.5,1896.3,4.935]
[1743199842710,7.53452369,1896.5,1896.2,10.20869]
[1743199843311,2.26165369,1896.3,1895.9,6.0788]
[1743199843468,2.26165369,1896.2,1896.0,4.935]
[1743199843668,7.53537369,1896.2,1895.9,0.8044]
[1743199843895,2.26165369,1896.1,1895.8,5.27471]
[1743199844095,2.26165369,1896.1,1895.9,4.935]
[1743199844667,7.53566369,1896.1,1895.9,4.935]
[1743199845100,8.34916369,1896.1,1896.0,0.33749836]
[1743199845912,6.08751,1896.1,1896.0,0.33749836]
[1743199846207,9.48528669,1896.1,1896.0,0.33749836]
[1743199846410,5.27445,1896.0,1895.7,27.904]
[1743199846573,2.26165369,1895.8,1895.7,27.904]
[1743199846908,7.53646369,1895.8,1895.5,4.935]
[1743199847069,2.26165369,1895.7,1895.6,14.5]
[1743199848322,10.53674369,1895.7,1895.6,14.5]
[1743199848521,11.61291545,1895.7,1895.6,14.5]
[1743199848818,5.27544,1895.6,1895.3,5.7088]
[1743199849189,5.27544,1895.6,1895.4,14.5]
[1743199850210,10.55093,1895.6,1895.4,14.5]
[1743199850514,5.27544,1895.6,1895.4,14.5]
[1743199851013,0.8135,1895.5,1895.4,14.5]
[1743199851310,10.55231,1895.4,1895.0,38.89083]
[1743199851483,14.32607748,1895.4,1895.0,38.89083]
[1743199851688,14.32607748,1895.4,1895.1,14.5]
[1743199852275,9.04998748,1895.3,1895.1,14.5]
[1743199853287,6.06,1895.6,1895.2,0.7728]
[1743199853611,6.06,1895.6,1895.4,5.27591]
[1743199853817,3.77376748,1895.7,1895.3,5.27608]
[1743199853818,9.83376748,1895.7,1895.3,5.27608]
[1743199853977,6.06,1895.7,1895.5,15.2728]
[1743199854193,11.33484,1895.8,1895.5,20.5484]
[1743199854394,15.10860748,1895.8,1895.5,20.5484]
[1743199854622,15.10860748,1895.8,1895.5,15.2728]
[1743199855534,3.77376748,1895.7,1895.5,15.2728]
[1743199856094,6.06,1895.8,1895.6,5.27523]
[1743199856415,6.06,1895.8,1895.6,5.27519]
[1743199857233,6.06,1895.8,1895.6,6.407554]
[1743199857395,6.06,1895.8,1895.7,5.27509]
[1743199858091,6.06,1895.8,1895.7,19.77509]
[1743199858294,6.06,1895.8,1895.7,20.54789]
[1743199858603,3.77376748,1896.1,1895.7,15.2728]
[1743199858813,3.77376748,1896.1,1895.8,5.27461]
[1743199859696,3.77376748,1896.1,1895.9,14.5]
[1743199860119,6.77376748,1896.1,1896.0,0.31565749]
[1743199861398,12.04774748,1896.1,1896.0,0.31565749]
[1743199861600,17.32194748,1896.1,1895.7,10.98486]
[1743199861799,17.32194748,1896.1,1895.8,14.81565749]
[1743199862736,3.77376748,1895.9,1895.8,14.81565749]
[1743199863035,4.59576748,1895.9,1895.8,0.31565749]
[1743199863201,4.59576748,1895.9,1895.6,5.27526]
[1743199863402,4.59576748,1895.9,1895.7,0.31565749]
[1743199863603,3.77376748,1895.9,1895.6,10.5505]
[1743199864002,3.77376748,1895.9,1895.7,0.31565749]
[1743199864239,3.77376748,1895.9,1895.6,10.5505]
[1743199864437,3.77376748,1895.9,1895.7,0.31555228]
[1743199864737,3.77376748,1895.9,1895.6,10.5505]
[1743199864923,3.77376748,1895.9,1895.8,0.31555228]
[1743199865112,3.77376748,1895.9,1895.6,10.5505]
[1743199865312,3.77376748,1895.9,1895.8,0.31555228]
[1743199865811,6.77376748,1896.1,1895.9,5.27429]
[1743199866325,6.77376748,1896.1,1896.0,0.31555228]
[1743199866916,6.77376748,1896.1,1895.9,14.5]
[1743199867138,6.77376748,1896.1,1896.0,0.31555228]
[1743199870047,6.77376748,1896.1,1896.0,0.31460553]
[1743199872057,6.77376748,1896.1,1895.8,19.77465]
[1743199872344,6.77376748,1896.1,1895.9,0.31460553]
[1743199872747,6.77376748,1896.1,1895.8,19.77465]
[1743199873214,6.77376748,1896.1,1895.9,0.31460553]
[1743199873414,6.77376748,1896.1,1895.8,19.77465]
[1743199873614,6.77376748,1896.1,1895.9,0.31460553]
[1743199873924,6.77376748,1896.1,1895.8,19.77465]
[1743199874237,3.77376748,1896.1,1895.8,19.77465]
[1743199874444,3.77376748,1896.1,1895.9,0.31460553]
[1743199874745,5.27453,1895.9,1895.5,6.08701]
[1743199874949,14.32298748,1895.9,1895.6,4.937]
[1743199875142,9.04829748,1895.9,1895.6,5.25160553]
[1743199878377,9.04829748,1895.9,1895.6,10.52695553]
[1743199879048,9.04829748,1895.9,1895.7,14.5]
[1743199879249,3.77376748,1895.9,1895.7,14.5]
[1743199879440,10.03452323,1895.9,1895.8,0.31460553]
[1743199879638,13.84772323,1895.9,1895.8,0.31460553]
[1743199879871,6.08877,1895.6,1895.3,27.917]
[1743199880175,3.77376748,1895.5,1895.4,0.26128398]
[1743199881174,5.27484,1895.8,1895.4,1.07288398]
[1743199881350,3.77376748,1895.7,1895.4,8.43356738]
[1743199882173,3.77376748,1895.7,1895.4,6.34868398]
[1743199883573,3.77376748,1895.7,1895.5,14.5]
[1743199883974,3.77376748,1895.8,1895.6,5.51254481]
[1743199884144,3.77376748,1895.8,1895.6,0.23727481]
[1743199884544,3.77376748,1895.8,1895.7,14.5]
[1743199884842,3.77376748,1895.8,1895.7,14.73842907]
[1743199885173,9.04857748,1895.8,1895.7,14.73842907]
[1743199886979,9.04857748,1895.8,1895.7,0.23842907]
[1743199887277,9.04857748,1895.8,1895.4,11.02429]
[1743199887443,9.04857748,1895.8,1895.5,14.73842907]
[1743199887645,9.04857748,1895.8,1895.6,5.27537]
[1743199887646,3.77376748,1895.8,1895.6,5.27537]
[1743199888047,3.77376748,1895.8,1895.7,0.23842907]
[1743199888377,3.77376748,1895.8,1895.6,5.27537]
[1743199888577,3.77376748,1895.8,1895.7,0.23842907]
[1743199888875,3.77376748,1895.8,1895.6,5.27516]
[1743199889072,3.77376748,1895.8,1895.7,0.23842907]
[1743199889379,3.77376748,1895.8,1895.6,5.27516]
[1743199889538,3.77376748,1895.8,1895.7,0.23842907]
[1743199889742,6.77376748,1895.9,1895.7,0.23842907]
[1743199889942,6.77376748,1895.9,1895.7,5.27498]
[1743199890184,3.77376748,1895.9,1895.8,0.23842907]
[1743199894690,3.77376748,1895.9,1895.6,20.55385]
[1743199894867,3.77376748,1895.9,1895.7,0.23895374]
[1743199895066,3.77376748,1895.9,1895.6,20.55385]
[1743199895280,3.77376748,1895.9,1895.7,0.23895374]
[1743199895502,3.77376748,1895.9,1895.6,20.55385]
[1743199895801,3.77376748,1895.9,1895.7,0.23895374]
[1743199896108,3.77376748,1895.9,1895.6,20.55385]
[1743199896263,3.77376748,1895.9,1895.7,0.23895374]
[1743199896462,3.77376748,1895.9,1895.6,20.55385]
[1743199896801,3.77376748,1895.9,1895.7,0.23895374]
[1743199897104,3.77376748,1895.9,1895.6,20.55385]
[1743199897291,3.77376748,1895.9,1895.7,0.23895374]
[1743199897476,3.77376748,1895.9,1895.6,20.55385]
[1743199897683,3.77376748,1895.9,1895.7,0.23895374]
[1743199897876,3.77376748,1895.9,1895.6,20.55385]
[1743199898202,3.77376748,1895.9,1895.7,0.23895374]
[1743199898702,3.77376748,1895.9,1895.8,0.23895374]
[1743199898905,4.67857223,1895.9,1895.6,6.05385]
[1743199899090,3.77376748,1895.9,1895.7,0.23895374]
[1743199899302,3.77376748,1895.9,1895.6,6.05385]
[1743199899468,3.77376748,1895.9,1895.7,0.23895374]
[1743199899668,3.77376748,1895.9,1895.6,6.05385]
[1743199899883,3.77376748,1895.9,1895.7,0.23895374]
[1743199900098,3.77376748,1895.9,1895.6,6.05385]